[Event "Balkan Youth Online-ch 2020"]
[Site "Online"]
[Date "2020.10.31"]
[Round "2.93"]
[White "Bojovic, Neda"]
[Black "Yilmaz, Duygu Sila"]
[Result "0-1"]
[ECO "D50"]
[WhiteElo "1316"]
[BlackElo "1408"]
[Annotator "NA RC"]
[PlyCount "102"]
[EventDate "2020.10.31"]
[EventType "swiss"]
[SourceTitle "playchess.com"]
[Source "ChessBase"]
[SourceQuality "1"]
[TimeControl "5400+30"]

1. d4 {[%emt 1:05:20]} d5 {[%emt 1:05:25]} 2. c4 {[%emt 0:00:23]} e6 {[%emt 0:00:24]} 3. Nc3 {[%emt 0:00:22]} Nf6 {[%emt 0:00:22]} 4. Bg5 {[%emt 0:00:24]} c6 {[%emt 0:00:48]} 5. e3 {[%emt 0:00:51]} b6 {[%emt 0:02:01]} 6. Nf3 {[%emt 0:02:19]} Nbd7 {[%emt 0:01:03]} 7. cxd5 {[%emt 0:00:25]} exd5 {[%emt 0:00:40]} 8. Bd3 {[%emt 0:00:37]} Bd6 {[%emt 0:01:51]} 9. Rc1 {[%emt 0:00:51]} O-O {[%emt 0:01:10]} 10. O-O {[%emt 0:01:40]} h6 {[%emt 0:03:16]} 11. Bh4 {[%emt 0:00:26]} Bb7 {[%emt 0:02:36]} 12. Bb1 {[%emt 0:01:43]} Be7 {[%emt 0:03:19]} 13. Qd3 {[%emt 0:02:31]} a5 {[%emt 0:03:26]} 14. Ne5 {[%emt 0:02:20]} g5 {[%emt 0:03:03]} 15. Bg3 {[%emt 0:00:39]} Ba6 {[%emt 0:04:35]} 16. Qc2 {[%emt 0:04:22]} Bxf1 {[%emt 0:00:38]} 17. Nxc6 {[%emt 0:00:25]} Qe8 {[%emt 0:00:29]} 18. Nxd5 {[%emt 0:00:30]} Kg7 {[%emt 0:03:37]} 19. Be5 {[%emt 0:03:56]} Rh8 {[%emt 0:00:28]} 20. Ncxe7 {[%emt 0:04:52]} Nxe5 {[%emt 0:00:33]} 21. dxe5 {[%emt 0:00:40]} Nxd5 {[%emt 0:00:23]} 22. Rxf1 {[%emt 0:01:39]} Nxe7 {[%emt 0:00:25]} 23. Qb3 {[%emt 0:00:40]} Qc6 {[%emt 0:00:38]} 24. a3 {[%emt 0:00:59]} Rad8 {[%emt 0:00:26]} 25. Ba2 {[%emt 0:02:11]} Qd5 {[%emt 0:00:23]} 26. Qxb6 {[%emt 0:00:28]} Qxa2 {[%emt 0:00:25]} 27. Qf6+ {[%emt 0:00:23]} Kg8 {[%emt 0:00:29]} 28. Qxe7 {[%emt 0:00:24]} Qd5 {[%emt 0:00:50]} 29. Qf6 {[%emt 0:00:30]} Re8 {[%emt 0:00:29]} 30. f4 {[%emt 0:01:24]} Qe6 {[%emt 0:00:23]} 31. fxg5 {[%emt 0:00:51]} Qxf6 {[%emt 0:00:22]} 32. Rxf6 {[%emt 0:00:32]} hxg5 {[%emt 0:00:26]} 33. Rf5 {[%emt 0:00:24]} Rh5 {[%emt 0:00:49]} 34. h3 {[%emt 0:00:25]} Kg7 {[%emt 0:00:24]} 35. Kf2 {[%emt 0:00:24]} Kg6 {[%emt 0:00:23]} 36. e4 {[%emt 0:00:21]} Rc8 {[%emt 0:00:40]} 37. Kf3 {[%emt 0:00:57]} Rc4 {[%emt 0:00:36]} 38. Rf6+ {[%emt 0:00:26]} Kg7 {[%emt 0:00:22]} 39. Rf5 {[%emt 0:00:21]} Rc2 {[%emt 0:00:25]} 40. Kg4 {[%emt 0:00:34]} Rh6 {[%emt 0:00:32]} 41. Rxg5+ {[%emt 0:00:35]} Rg6 {[%emt 0:00:25]} 42. g3 {[%emt 0:00:26]} Rxg5+ {[%emt 0:00:28]} 43. Kxg5 {[%emt 0:00:23]} Rxb2 {[%emt 0:00:21]} 44. g4 {[%emt 0:00:24]} Rb5 {[%emt 0:00:27]} 45. Kf5 {[%emt 0:00:22]} Rb3 {[%emt 0:00:41]} 46. h4 {[%emt 0:00:26]} Rf3+ {[%emt 0:00:50]} 47. Kg5 {[%emt 0:00:24]} Rxa3 {[%emt 0:00:22]} 48. Kf5 {[%emt 0:00:24]} Rf3+ {[%emt 0:00:22]} 49. Kg5 {[%emt 0:00:22]} a4 {[%emt 0:00:27]} 50. h5 {[%emt 0:00:22]} a3 {[%emt 0:00:39]} 51. h6+ {[%emt 0:00:22]} Kh7 {[%emt 0:00:23]} 0-1

[Event "Balkan Youth Online-ch 2020"]
[Site "Online"]
[Date "2020.10.31"]
[Round "2.94"]
[White "Eftovska, Lea"]
[Black "Zeycan, Alara"]
[Result "1-0"]
[ECO "C54"]
[WhiteElo "1587"]
[BlackElo "1230"]
[Annotator "NA RC"]
[PlyCount "105"]
[EventDate "2020.10.31"]
[EventType "swiss"]
[SourceTitle "playchess.com"]
[Source "ChessBase"]
[SourceQuality "1"]
[TimeControl "5400+30"]

1. e4 {[%emt 1:05:20]} e5 {[%emt 1:05:26]} 2. Nf3 {[%emt 0:00:25]} Nc6 {[%emt 0:00:28]} 3. Bc4 {[%emt 0:00:25]} Bc5 {[%emt 0:00:24]} 4. d3 {[%emt 0:00:23]} h6 {[%emt 0:00:29]} 5. O-O {[%emt 0:00:23]} Nf6 {[%emt 0:00:23]} 6. h3 {[%emt 0:00:32]} O-O {[%emt 0:00:23]} 7. Nbd2 {[%emt 0:00:32]} d6 {[%emt 0:00:34]} 8. c3 {[%emt 0:00:24]} Be6 {[%emt 0:00:27]} 9. b4 {[%emt 0:00:54]} Bb6 {[%emt 0:00:46]} 10. a4 {[%emt 0:00:29]} a6 {[%emt 0:00:31]} 11. Re1 {[%emt 0:00:51]} Re8 {[%emt 0:00:44]} 12. Bxe6 {[%emt 0:01:49]} fxe6 {[%emt 0:00:27]} 13. Nc4 {[%emt 0:00:28]} Ba7 {[%emt 0:00:41]} 14. Qb3 {[%emt 0:02:35]} b5 {[%emt 0:01:45]} 15. Ne3 {[%emt 0:01:10]} Kh8 {[%emt 0:01:54]} 16. Nf1 {[%emt 0:01:20]} d5 {[%emt 0:01:01]} 17. Bb2 {[%emt 0:04:16]} d4 {[%emt 0:00:43]} 18. c4 {[%emt 0:00:40]} bxc4 {[%emt 0:00:36]} 19. Qxc4 {[%emt 0:00:26]} Nb8 {[%emt 0:00:52]} 20. Nxe5 {[%emt 0:00:27]} Kh7 {[%emt 0:01:10]} 21. Rac1 {[%emt 0:00:42]} Re7 {[%emt 0:00:52]} 22. Ng3 {[%emt 0:00:36]} Qd6 {[%emt 0:00:45]} 23. Nf3 {[%emt 0:00:35]} e5 {[%emt 0:00:40]} 24. Nf5 {[%emt 0:00:26]} Qd7 {[%emt 0:01:23]} 25. Nxe7 {[%emt 0:00:25]} Qxe7 {[%emt 0:00:22]} 26. Qxc7 {[%emt 0:00:24]} Qxc7 {[%emt 0:00:24]} 27. Rxc7 {[%emt 0:00:22]} Nbd7 {[%emt 0:00:26]} 28. Rec1 {[%emt 0:00:32]} Bb6 {[%emt 0:00:30]} 29. Rc8 {[%emt 0:02:43]} Rxc8 {[%emt 0:00:46]} 30. Rxc8 {[%emt 0:00:23]} Kg6 {[%emt 0:00:24]} 31. Ba3 {[%emt 0:00:52]} Kf7 {[%emt 0:00:49]} 32. Rc6 {[%emt 0:00:30]} Ne8 {[%emt 0:01:20]} 33. a5 {[%emt 0:00:43]} Bc7 {[%emt 0:00:41]} 34. Rxa6 {[%emt 0:00:28]} Bd6 {[%emt 0:00:25]} 35. Rc6 {[%emt 0:01:11]} Ke7 {[%emt 0:00:46]} 36. Nh4 {[%emt 0:00:56]} Kf7 {[%emt 0:02:04]} 37. a6 {[%emt 0:00:36]} Nb8 {[%emt 0:00:30]} 38. a7 {[%emt 0:00:57]} Nxc6 {[%emt 0:00:42]} 39. a8=Q {[%emt 0:00:24]} Ne7 {[%emt 0:00:30]} 40. b5 {[%emt 0:00:42]} Nc7 {[%emt 0:00:39]} 41. Qa4 {[%emt 0:00:44]} Bxa3 {[%emt 0:00:28]} 42. Qxa3 {[%emt 0:00:22]} Nxb5 {[%emt 0:00:22]} 43. Qc5 {[%emt 0:00:23]} Nc3 {[%emt 0:00:26]} 44. Qxe5 {[%emt 0:00:29]} Nc6 {[%emt 0:00:32]} 45. Qf5+ {[%emt 0:00:36]} Ke7 {[%emt 0:00:27]} 46. Ng6+ {[%emt 0:00:24]} Kd6 {[%emt 0:00:23]} 47. e5+ {[%emt 0:00:51]} Kc5 {[%emt 0:00:28]} 48. e6+ {[%emt 0:00:33]} Kd6 {[%emt 0:00:23]} 49. Qf7 {[%emt 0:01:01]} Nd5 {[%emt 0:00:38]} 50. Qd7+ {[%emt 0:00:39]} Kc5 {[%emt 0:00:23]} 51. e7 {[%emt 0:00:37]} Ncxe7 {[%emt 0:00:53]} 52. Nxe7 {[%emt 0:00:24]} Nxe7 {[%emt 0:00:23]} 53. Qxe7+ {[%emt 0:00:23]} 1-0

[Event "Balkan Youth Online-ch 2020"]
[Site "Online"]
[Date "2020.10.31"]
[Round "3.2"]
[White "Lafkidis, Apostolos"]
[Black "Sava, Robert-Gabriel"]
[Result "1/2-1/2"]
[ECO "B55"]
[WhiteElo "1497"]
[BlackElo "1716"]
[Annotator "NA RC"]
[PlyCount "121"]
[EventDate "2020.10.31"]
[EventType "swiss"]
[SourceTitle "playchess.com"]
[Source "ChessBase"]
[SourceQuality "1"]
[TimeControl "1500+5"]

1. e4 {[%emt 0:00:00]} c5 {[%emt 0:02:37]} 2. Nf3 {[%emt 0:00:00]} d6 {[%emt 0:00:00]} 3. d4 {[%emt 0:00:00]} cxd4 {[%emt 0:00:00]} 4. Nxd4 {[%emt 0:00:00]} Nf6 {[%emt 0:00:00]} 5. f3 {[%emt 0:00:00]} Nc6 {[%emt 0:00:00]} 6. c4 {[%emt 0:00:00]} e6 {[%emt 0:00:00]} 7. Nc3 {[%emt 0:00:00]} Be7 {[%emt 0:00:00]} 8. Be3 {[%emt 0:00:00]} O-O {[%emt 0:00:00]} 9. Be2 {[%emt 0:00:00]} e5 {[%emt 0:00:14]} 10. Nb3 {[%emt 0:00:00]} Be6 {[%emt 0:00:00]} 11. O-O {[%emt 0:00:00]} a6 {[%emt 0:00:39]} 12. Qd2 {[%emt 0:00:00]} Nd7 {[%emt 0:00:04]} 13. Nd5 {[%emt 0:00:06]} Bxd5 {[%emt 0:00:17]} 14. cxd5 {[%emt 0:00:01]} Ncb8 {[%emt 0:00:00]} 15. Rac1 {[%emt 0:00:00]} f5 {[%emt 0:00:09]} 16. Na5 {[%emt 0:00:14]} b6 {[%emt 0:00:45]} 17. Nc6 {[%emt 0:00:05]} Nxc6 {[%emt 0:00:00]} 18. Rxc6 {[%emt 0:03:22]} fxe4 {[%emt 0:00:43]} 19. fxe4 {[%emt 0:00:04]} Rxf1+ {[%emt 0:00:00]} 20. Kxf1 {[%emt 0:02:00]} Nc5 {[%emt 0:00:12]} 21. Bxc5 {[%emt 0:01:13]} bxc5 {[%emt 0:00:02]} 22. Rxa6 {[%emt 0:00:51]} Rb8 {[%emt 0:00:13]} 23. b3 {[%emt 0:00:36]} Bg5 {[%emt 0:00:24]} 24. Qd3 {[%emt 0:01:00]} Qf6+ {[%emt 0:00:17]} 25. Qf3 {[%emt 0:06:39]} Qg6 {[%emt 0:00:42]} 26. Qg4 {[%emt 0:01:07]} Rf8+ {[%emt 0:00:44]} 27. Bf3 {[%emt 0:00:30]} Kh8 {[%emt 0:01:54]} 28. Ke2 {[%emt 0:00:43]} Qh6 {[%emt 0:05:38]} 29. Qh3 {[%emt 0:01:44]} Qf6 {[%emt 0:01:22]} 30. Qg4 {[%emt 0:02:11]} g6 {[%emt 0:00:49]} 31. Ra7 {[%emt 0:00:33]} Bh6 {[%emt 0:02:07]} 32. Qd7 {[%emt 0:01:00]} Bg7 {[%emt 0:00:39]} 33. Qe7 {[%emt 0:00:41]} Qxe7 {[%emt 0:00:14]} 34. Rxe7 {[%emt 0:00:00]} Ra8 {[%emt 0:00:00]} 35. Kd3 {[%emt 0:00:06]} Bf8 {[%emt 0:00:00]} 36. Rb7 {[%emt 0:01:07]} Rxa2 {[%emt 0:00:00]} 37. b4 {[%emt 0:00:31]} cxb4 {[%emt 0:00:12]} 38. Rxb4 {[%emt 0:00:00]} Ra3+ {[%emt 0:00:00]} 39. Ke2 {[%emt 0:00:04]} Ra2+ {[%emt 0:00:00]} 40. Kd3 {[%emt 0:00:00]} h5 {[%emt 0:00:08]} 41. Rb8 {[%emt 0:00:18]} Kg8 {[%emt 0:00:07]} 42. h3 {[%emt 0:00:11]} Ra3+ {[%emt 0:00:31]} 43. Ke2 {[%emt 0:00:02]} Ra4 {[%emt 0:00:02]} 44. Kd3 {[%emt 0:00:09]} Ra2 {[%emt 0:00:27]} 45. Kc3 {[%emt 0:00:22]} Ra4 {[%emt 0:01:38]} 46. Rb4 {[%emt 0:00:01]} Rxb4 {[%emt 0:00:18]} 47. Kxb4 {[%emt 0:00:00]} Bh6 {[%emt 0:00:00]} 48. Kb5 {[%emt 0:00:13]} Be3 {[%emt 0:00:00]} 49. Kc6 {[%emt 0:00:00]} Bc5 {[%emt 0:00:00]} 50. Kd7 {[%emt 0:00:00]} Kf7 {[%emt 0:00:00]} 51. g4 {[%emt 0:00:16]} hxg4 {[%emt 0:00:13]} 52. Bxg4 {[%emt 0:00:08]} g5 {[%emt 0:00:12]} 53. Bf5 {[%emt 0:00:14]} Kf6 {[%emt 0:00:00]} 54. Ke8 {[%emt 0:00:01]} Ba3 {[%emt 0:00:00]} 55. Kf8 {[%emt 0:00:00]} Bc5 {[%emt 0:00:00]} 56. Kg8 {[%emt 0:00:00]} Ba3 {[%emt 0:00:00]} 57. Kh7 {[%emt 0:00:00]} Bc5 {[%emt 0:00:02]} 58. Kh6 {[%emt 0:00:00]} Ba3 {[%emt 0:00:07]} 59. Kh5 {[%emt 0:00:00]} Bc5 {[%emt 0:00:00]} 60. Kg4 {[%emt 0:00:00]} Ba3 {[%emt 0:00:00]} 61. Be6 {[%emt 0:00:00]} 1/2-1/2

[Event "Balkan Youth Online-ch 2020"]
[Site "Online"]
[Date "2020.10.31"]
[Round "3.3"]
[White "Sevig, Mert Can"]
[Black "Boci, Mateo"]
[Result "0-1"]
[ECO "C14"]
[WhiteElo "1472"]
[BlackElo "1286"]
[Annotator "NA RC"]
[PlyCount "72"]
[EventDate "2020.10.31"]
[EventType "swiss"]
[SourceTitle "playchess.com"]
[Source "ChessBase"]
[SourceQuality "1"]
[TimeControl "1500+5"]

1. e4 {[%emt 0:00:00]} e6 {[%emt 0:00:00]} 2. d4 {[%emt 0:00:00]} d5 {[%emt 0:00:00]} 3. Nc3 {[%emt 0:00:00]} Nf6 {[%emt 0:00:03]} 4. Bg5 {[%emt 0:00:00]} Be7 {[%emt 0:00:00]} 5. e5 {[%emt 0:00:00]} Nfd7 {[%emt 0:00:00]} 6. Bxe7 {[%emt 0:00:00]} Qxe7 {[%emt 0:00:02]} 7. f4 {[%emt 0:00:00]} a6 {[%emt 0:00:01]} 8. Nf3 {[%emt 0:00:00]} c5 {[%emt 0:00:00]} 9. Qd2 {[%emt 0:00:00]} Nc6 {[%emt 0:00:06]} 10. O-O-O {[%emt 0:00:00]} b5 {[%emt 0:00:11]} 11. dxc5 {[%emt 0:01:43]} Nxc5 {[%emt 0:00:11]} 12. Nd4 {[%emt 0:00:00]} Bb7 {[%emt 0:01:03]} 13. Nce2 {[%emt 0:01:14]} Rc8 {[%emt 0:00:56]} 14. Nxc6 {[%emt 0:00:15]} Bxc6 {[%emt 0:00:20]} 15. Nd4 {[%emt 0:00:04]} Bb7 {[%emt 0:00:02]} 16. Qe3 {[%emt 0:02:46]} Ne4 {[%emt 0:01:32]} 17. Bd3 {[%emt 0:00:24]} Nc5 {[%emt 0:02:20]} 18. Be2 {[%emt 0:01:01]} O-O {[%emt 0:03:07]} 19. g4 {[%emt 0:01:04]} Ne4 {[%emt 0:00:38]} 20. Bd3 {[%emt 0:01:31]} Rc7 {[%emt 0:01:41]} 21. Rhg1 {[%emt 0:04:01]} Rfc8 {[%emt 0:00:46]} 22. Rdf1 {[%emt 0:00:46]} Nc5 {[%emt 0:03:37]} 23. Kb1 {[%emt 0:05:37]} Nxd3 {[%emt 0:00:14]} 24. cxd3 {[%emt 0:00:12]} Re8 {[%emt 0:00:31]} 25. Re1 {[%emt 0:01:38]} b4 {[%emt 0:00:24]} 26. f5 {[%emt 0:01:25]} a5 {[%emt 0:00:34]} 27. Qf4 {[%emt 0:01:50]} Ba6 {[%emt 0:00:22]} 28. Rg3 {[%emt 0:00:38]} Qh4 {[%emt 0:00:20]} 29. Nf3 {[%emt 0:00:26]} Bxd3+ {[%emt 0:00:07]} 30. Ka1 {[%emt 0:00:00]} Qh6 {[%emt 0:00:39]} 31. g5 {[%emt 0:00:47]} Qh5 {[%emt 0:00:11]} 32. f6 {[%emt 0:00:03]} Be4 {[%emt 0:00:35]} 33. Reg1 {[%emt 0:00:09]} Rec8 {[%emt 0:00:25]} 34. Nd4 {[%emt 0:00:02]} Qxh2 {[%emt 0:00:21]} 35. fxg7 {[%emt 0:00:00]} Qxg3 {[%emt 0:00:36]} 36. Qf1 {[%emt 0:00:13]} Qxg1 {[%emt 0:00:27]} 0-1

[Event "Balkan Youth Online-ch 2020"]
[Site "Online"]
[Date "2020.10.31"]
[Round "3.4"]
[White "Gkavardinas, Antonios"]
[Black "Palaiologou, Apostolos"]
[Result "1-0"]
[ECO "B90"]
[WhiteElo "1606"]
[BlackElo "1410"]
[Annotator "NA RC"]
[PlyCount "73"]
[EventDate "2020.10.31"]
[EventType "swiss"]
[SourceTitle "playchess.com"]
[Source "ChessBase"]
[SourceQuality "1"]
[TimeControl "5400+30"]

1. e4 {[%emt 1:05:20]} c5 {[%emt 1:05:23]} 2. Nf3 {[%emt 0:00:22]} d6 {[%emt 0:00:22]} 3. d4 {[%emt 0:00:23]} cxd4 {[%emt 0:00:27]} 4. Nxd4 {[%emt 0:00:21]} Nf6 {[%emt 0:00:25]} 5. Nc3 {[%emt 0:00:24]} a6 {[%emt 0:00:27]} 6. f3 {[%emt 0:00:22]} Qb6 {[%emt 0:00:41]} 7. Nb3 {[%emt 0:00:43]} e6 {[%emt 0:02:19]} 8. Qe2 {[%emt 0:01:14]} Nc6 {[%emt 0:01:25]} 9. Be3 {[%emt 0:00:35]} Qc7 {[%emt 0:00:32]} 10. O-O-O {[%emt 0:00:24]} b5 {[%emt 0:01:38]} 11. g4 {[%emt 0:00:38]} Bb7 {[%emt 0:02:07]} 12. h4 {[%emt 0:00:47]} Nd7 {[%emt 0:01:16]} 13. Qf2 {[%emt 0:00:46]} Be7 {[%emt 0:01:59]} 14. g5 {[%emt 0:00:37]} Nce5 {[%emt 0:00:40]} 15. Kb1 {[%emt 0:01:18]} Rc8 {[%emt 0:01:27]} 16. a3 {[%emt 0:00:39]} Nc5 {[%emt 0:01:29]} 17. h5 {[%emt 0:01:43]} Nxb3 {[%emt 0:01:43]} 18. cxb3 {[%emt 0:00:30]} f6 {[%emt 0:01:11]} 19. Bh3 {[%emt 0:01:49]} f5 {[%emt 0:01:19]} 20. f4 {[%emt 0:03:01]} Nd7 {[%emt 0:01:09]} 21. Rhe1 {[%emt 0:01:45]} O-O {[%emt 0:01:12]} 22. exf5 {[%emt 0:00:55]} exf5 {[%emt 0:00:35]} 23. Bd4 {[%emt 0:01:06]} Nc5 {[%emt 0:00:44]} 24. b4 {[%emt 0:01:12]} Ne4 {[%emt 0:00:59]} 25. Nxe4 {[%emt 0:01:19]} Bxe4+ {[%emt 0:00:34]} 26. Rxe4 {[%emt 0:01:19]} fxe4 {[%emt 0:00:24]} 27. Be6+ {[%emt 0:00:24]} Kh8 {[%emt 0:00:34]} 28. h6 {[%emt 0:00:26]} Bf6 {[%emt 0:00:48]} 29. gxf6 {[%emt 0:00:30]} gxf6 {[%emt 0:00:32]} 30. Bxc8 {[%emt 0:00:29]} Qxc8 {[%emt 0:00:25]} 31. Rg1 {[%emt 0:01:09]} Qf5 {[%emt 0:00:50]} 32. Qg3 {[%emt 0:00:55]} Qg6 {[%emt 0:00:55]} 33. Qh3 {[%emt 0:01:41]} Qf7 {[%emt 0:00:37]} 34. Qf5 {[%emt 0:00:54]} Qe7 {[%emt 0:01:51]} 35. Rg7 {[%emt 0:00:35]} Qxg7 {[%emt 0:00:28]} 36. hxg7+ {[%emt 0:00:22]} Kxg7 {[%emt 0:00:23]} 37. Qxe4 {[%emt 0:00:22]} 1-0

[Event "Balkan Youth Online-ch 2020"]
[Site "Online"]
[Date "2020.10.31"]
[Round "3.5"]
[White "Petrovski, Nikola"]
[Black "Alimema, Alvin"]
[Result "0-1"]
[ECO "A20"]
[WhiteElo "1031"]
[BlackElo "1110"]
[Annotator "NA RC"]
[PlyCount "116"]
[EventDate "2020.10.31"]
[EventType "swiss"]
[SourceTitle "playchess.com"]
[Source "ChessBase"]
[SourceQuality "1"]
[TimeControl "1500+5"]

1. d4 {[%emt 0:00:00]} Nf6 {[%emt 0:00:00]} 2. c4 {[%emt 0:00:00]} e5 {[%emt 0:00:14]} 3. Nf3 {[%emt 0:00:03]} exd4 {[%emt 0:00:06]} 4. Nxd4 {[%emt 0:00:00]} Nc6 {[%emt 0:00:04]} 5. Nc2 {[%emt 0:00:03]} Be7 {[%emt 0:00:15]} 6. Nc3 {[%emt 0:00:03]} d6 {[%emt 0:00:56]} 7. Bg5 {[%emt 0:00:01]} h6 {[%emt 0:00:48]} 8. Bxf6 {[%emt 0:00:10]} Bxf6 {[%emt 0:00:05]} 9. e3 {[%emt 0:00:00]} Bxc3+ {[%emt 0:00:18]} 10. bxc3 {[%emt 0:00:00]} Ne5 {[%emt 0:00:41]} 11. f4 {[%emt 0:00:09]} Nc6 {[%emt 0:00:53]} 12. Nd4 {[%emt 0:00:03]} Qe7 {[%emt 0:01:00]} 13. Qd3 {[%emt 0:00:09]} Bd7 {[%emt 0:00:52]} 14. Be2 {[%emt 0:00:05]} O-O {[%emt 0:02:20]} 15. O-O {[%emt 0:00:03]} Rfe8 {[%emt 0:00:33]} 16. Rf3 {[%emt 0:01:07]} Nxd4 {[%emt 0:02:51]} 17. cxd4 {[%emt 0:00:03]} Bg4 {[%emt 0:00:14]} 18. Rg3 {[%emt 0:00:01]} Bxe2 {[%emt 0:00:25]} 19. Qxe2 {[%emt 0:00:03]} Qf6 {[%emt 0:00:12]} 20. Rd1 {[%emt 0:00:34]} Re4 {[%emt 0:00:26]} 21. Qf3 {[%emt 0:00:43]} Rae8 {[%emt 0:00:35]} 22. Rd3 {[%emt 0:00:30]} Qe6 {[%emt 0:02:45]} 23. Qh5 {[%emt 0:02:03]} Rxf4 {[%emt 0:02:07]} 24. Rd1 {[%emt 0:00:34]} Rf5 {[%emt 0:00:58]} 25. Qg4 {[%emt 0:00:35]} Rg5 {[%emt 0:00:28]} 26. Qxe6 {[%emt 0:00:05]} Rxe6 {[%emt 0:00:01]} 27. Rxg5 {[%emt 0:00:08]} hxg5 {[%emt 0:00:00]} 28. Kf2 {[%emt 0:00:00]} f5 {[%emt 0:00:13]} 29. g3 {[%emt 0:00:16]} b6 {[%emt 0:00:13]} 30. Rf1 {[%emt 0:01:23]} g6 {[%emt 0:00:43]} 31. Ke2 {[%emt 0:00:04]} Re4 {[%emt 0:00:21]} 32. Kd3 {[%emt 0:00:05]} Kf7 {[%emt 0:00:34]} 33. h3 {[%emt 0:00:18]} Ke6 {[%emt 0:00:19]} 34. d5+ {[%emt 0:01:09]} Kf6 {[%emt 0:00:39]} 35. g4 {[%emt 0:00:18]} Re8 {[%emt 0:00:11]} 36. gxf5 {[%emt 0:00:04]} gxf5 {[%emt 0:00:00]} 37. Kd4 {[%emt 0:01:02]} Rh8 {[%emt 0:00:44]} 38. Rf3 {[%emt 0:00:15]} Rh4+ {[%emt 0:00:13]} 39. Kd3 {[%emt 0:00:00]} Ke5 {[%emt 0:00:22]} 40. Rg3 {[%emt 0:00:21]} Rh5 {[%emt 0:00:43]} 41. a3 {[%emt 0:00:18]} a6 {[%emt 0:00:11]} 42. a4 {[%emt 0:00:01]} a5 {[%emt 0:00:30]} 43. Rf3 {[%emt 0:00:01]} Rh4 {[%emt 0:00:16]} 44. Rg3 {[%emt 0:00:17]} Kf6 {[%emt 0:00:34]} 45. Rf3 {[%emt 0:00:05]} Re4 {[%emt 0:00:22]} 46. Rf2 {[%emt 0:00:39]} Kg6 {[%emt 0:00:17]} 47. Rg2 {[%emt 0:00:13]} Kh5 {[%emt 0:00:06]} 48. Rg3 {[%emt 0:00:00]} Kh4 {[%emt 0:00:13]} 49. Rf3 {[%emt 0:00:00]} Re5 {[%emt 0:00:00]} 50. Kd4 {[%emt 0:00:01]} g4 {[%emt 0:00:36]} 51. hxg4 {[%emt 0:00:02]} fxg4 {[%emt 0:00:14]} 52. Rf4 {[%emt 0:00:00]} Kh3 {[%emt 0:00:02]} 53. Rf8 {[%emt 0:00:09]} Rg5 {[%emt 0:00:07]} 54. Rh8+ {[%emt 0:00:01]} Kg2 {[%emt 0:00:00]} 55. Ke4 {[%emt 0:00:03]} g3 {[%emt 0:00:03]} 56. Kf4 {[%emt 0:00:02]} Rg7 {[%emt 0:00:11]} 57. Ke4 {[%emt 0:00:43]} Kf1 {[%emt 0:00:14]} 58. Kf3 {[%emt 0:00:01]} g2 {[%emt 0:00:09]} 0-1

[Event "Balkan Youth Online-ch 2020"]
[Site "Online"]
[Date "2020.10.31"]
[Round "3.12"]
[White "Mogirzan, Matei-Valeriu"]
[Black "Tsarsitalidis, Christos"]
[Result "1/2-1/2"]
[ECO "D31"]
[WhiteElo "1813"]
[BlackElo "1786"]
[Annotator "NA RC"]
[PlyCount "122"]
[EventDate "2020.10.31"]
[EventType "swiss"]
[SourceTitle "playchess.com"]
[Source "ChessBase"]
[SourceQuality "1"]
[TimeControl "1500+5"]

1. d4 {[%emt 0:00:00]} d5 {[%emt 0:00:00]} 2. c4 {[%emt 0:00:00]} e6 {[%emt 0:00:00]} 3. Nc3 {[%emt 0:00:00]} Bb4 {[%emt 0:00:00]} 4. cxd5 {[%emt 0:00:00]} exd5 {[%emt 0:00:00]} 5. e3 {[%emt 0:00:00]} Nf6 {[%emt 0:00:00]} 6. Nf3 {[%emt 0:00:00] D31: Queen's Gambit Declined: Semi-Slav without ...Nf6 (+ Marshall Gambit and Noteboom) and Exchange Variation lines without ...Nf6.} Bg4 {[%emt 0:00:00]} 7. Qa4+ {[%emt 0:00:24]} Nc6 {[%emt 0:00:00]} 8. Ne5 {[%emt 0:00:07]} Bd7 {[%emt 0:00:12] [#]} 9. Nxd7 $146 {[%emt 0:00:23]} ({Predecessor:} 9. Nxc6 Bxc3+ 10. bxc3 Bxc6 11. Qc2 Kf8 12. f3 h5 13. h4 Kg8 14. Bd3 Qd6 15. a4 {1-0 (57) Deforel,J (2025)-Sazonov,N (1992) ICCF email 2018}) 9... Qxd7 {[%emt 0:01:02]} 10. Bd3 {[%emt 0:00:53]} O-O {[%emt 0:02:05]} 11. O-O {[%emt 0:00:22]} a6 {[%emt 0:00:07]} 12. Qd1 {[%emt 0:02:02]} Ne7 {[%emt 0:00:22]} 13. Qf3 {[%emt 0:04:37]} Ng6 {[%emt 0:01:06]} 14. Bxg6 {[%emt 0:00:30]} hxg6 {[%emt 0:00:00]} 15. Bd2 {[%emt 0:00:42]} Bxc3 {[%emt 0:00:12]} 16. bxc3 {[%emt 0:01:15]} Ne4 {[%emt 0:00:00]} 17. Qd1 {[%emt 0:02:36]} Rfe8 {[%emt 0:00:18]} 18. f3 {[%emt 0:01:13]} Nd6 {[%emt 0:00:10]} 19. Qc2 {[%emt 0:01:08]} Nc4 {[%emt 0:00:45]} 20. Rae1 {[%emt 0:00:22]} f5 {[%emt 0:00:58]} 21. e4 {[%emt 0:01:54]} Nxd2 {[%emt 0:02:00]} (21... dxe4 $17 22. Bf4 exf3) 22. Qxd2 {[%emt 0:00:00]} dxe4 {[%emt 0:00:00]} 23. fxe4 {[%emt 0:00:00]} Rxe4 {[%emt 0:00:00]} 24. Rxe4 {[%emt 0:00:27]} fxe4 {[%emt 0:00:00]} 25. Qf4 {[%emt 0:00:26]} Qe7 {[%emt 0:00:00]} 26. Re1 {[%emt 0:01:07]} Re8 {[%emt 0:00:00]} 27. Qg4 {[%emt 0:00:34]} g5 {[%emt 0:00:50]} 28. Re3 {[%emt 0:00:53]} b5 {[%emt 0:08:12]} 29. Qf5 {[%emt 0:01:32] [#]} (29. h3 $11 {remains equal.}) 29... Qf6 $1 {[%emt 0:03:05]} 30. Qd5+ {[%emt 0:00:12] [#]} Kh7 $1 {[%emt 0:01:00]} 31. h4 {[%emt 0:02:51]} gxh4 {[%emt 0:01:46]} 32. Qh5+ {[%emt 0:00:00]} Qh6 {[%emt 0:00:00]} 33. Qf5+ {[%emt 0:00:56]} Qg6 {[%emt 0:00:00]} 34. Qf4 {[%emt 0:00:02]} Qh6 {[%emt 0:03:24]} 35. Rxe4 {[%emt 0:00:01]} Qxf4 {[%emt 0:00:00]} 36. Rxf4 {[%emt 0:00:00]} Re3 {[%emt 0:00:00]} 37. Rxh4+ {[%emt 0:00:00]} Kg8 {[%emt 0:00:00]} 38. Rh3 {[%emt 0:00:05]} Re1+ {[%emt 0:00:00]} 39. Kh2 {[%emt 0:00:12]} Ra1 {[%emt 0:00:00]} 40. Re3 {[%emt 0:00:16]} Kf7 {[%emt 0:00:23]} 41. Re2 {[%emt 0:00:00]} Rc1 {[%emt 0:00:00]} 42. Re3 {[%emt 0:00:06]} Rc2 {[%emt 0:00:00]} 43. a3 $17 {[%emt 0:00:09]} Kf6 {[%emt 0:00:25]} 44. Rf3+ {[%emt 0:00:09]} Ke6 {[%emt 0:00:01]} 45. Rg3 {[%emt 0:00:00]} Kd6 {[%emt 0:00:09]} 46. Rxg7 {[%emt 0:00:06]} Rxc3 {[%emt 0:00:00]} 47. Rg6+ {[%emt 0:00:10]} Kd5 {[%emt 0:00:00]} 48. Rxa6 {[%emt 0:00:00]} Kxd4 {[%emt 0:00:00]} 49. g4 {[%emt 0:00:00]} Rc2+ {[%emt 0:00:18]} 50. Kg3 {[%emt 0:00:01]} Ra2 {[%emt 0:00:02]} 51. g5 {[%emt 0:00:17]} b4 {[%emt 0:00:11]} 52. g6 {[%emt 0:00:02]} Ra1 {[%emt 0:00:04]} 53. Kf2 {[%emt 0:00:07]} Ra2+ {[%emt 0:00:06]} 54. Kf3 {[%emt 0:00:03]} Ra1 {[%emt 0:00:04]} 55. g7 {[%emt 0:00:11]} Rg1 {[%emt 0:00:02]} 56. axb4 {[%emt 0:00:00]} Rxg7 {[%emt 0:00:00]} 57. Rc6 {[%emt 0:00:00]} Re7 {[%emt 0:00:04]} 58. b5 {[%emt 0:00:10]} Kd5 {[%emt 0:00:08]} 59. Rc1 {[%emt 0:00:00]} Kd6 {[%emt 0:00:11]} 60. Rc6+ {[%emt 0:00:00]} Kd5 {[%emt 0:00:04]} 61. Rc1 {[%emt 0:00:00]} Kd6 {[%emt 0:00:05]} 1/2-1/2